bitfinex/quotes_ETHUSD_20250123
["timestamp","ask_amount","ask_price","bid_price","bid_amount"]
[1737643018806,0.8041,3264.8,3263.9,3.06373]
[1737643019029,0.8041,3264.8,3263.4,3.06425]
[1737643019340,0.8041,3264.8,3263.4,3.06423]
[1737643019628,3.86708,3264.8,3263.2,3.06447]
[1737643019941,3.06334,3264.5,3262.7,0.36761244]
[1737643020233,0.8041,3264.2,3262.6,3.06497]
[1737643020382,0.7862,3264.1,3262.2,3.1227551]
[1737643020935,0.7862,3264.1,3262.5,3.06513]
[1737643021082,0.7862,3264.1,3263.2,3.06446]
[1737643021429,0.7862,3264.1,3263.0,3.06466]
[1737643021644,0.116978,3264.9,3264.5,3.06323]
[1737643021790,0.116978,3264.9,3264.2,3.06348]
[1737643021985,0.116978,3264.9,3264.0,3.06371]
[1737643021986,0.116978,3264.9,3264.3,3.06343]
[1737643022299,0.116978,3264.9,3263.7,3.06392]
[1737643022488,0.116978,3264.9,3263.6,3.064]
[1737643022679,0.116978,3264.9,3263.7,0.3064]
[1737643022884,0.116978,3264.9,3263.8,4.00968681]
[1737643023185,0.116978,3264.9,3264.6,3.06309]
[1737643023387,0.116978,3264.9,3264.7,3.06305]
[1737643023620,0.116978,3264.9,3264.4,3.06333]
[1737643023783,0.116978,3264.9,3264.0,3.06372]
[1737643023987,0.116978,3264.9,3263.9,3.0638]
[1737643024210,0.116978,3264.9,3263.7,3.064]
[1737643024412,0.116978,3264.9,3263.9,3.06379]
[1737643024727,0.116978,3264.9,3264.2,3.06352]
[1737643025023,0.116978,3264.9,3264.4,3.06333]
[1737643025419,0.116978,3264.9,3264.2,3.0635]
[1737643025624,0.116978,3264.9,3264.2,3.06351]
[1737643025838,0.116978,3264.9,3264.0,3.06364]
[1737643025997,0.116978,3264.9,3263.3,7.07398681]
[1737643025998,0.8049,3264.8,3263.3,3.06438]
[1737643026200,0.8049,3264.8,3263.6,3.06408]
[1737643026447,0.8049,3264.8,3263.7,3.06393]
[1737643026654,0.8049,3264.8,3263.3,0.3453636]
[1737643026811,0.116978,3264.9,3263.3,4.35505041]
[1737643027143,0.116978,3264.9,3264.2,3.06349]
[1737643027647,0.116978,3264.9,3264.0,3.06371]
[1737643027950,0.116978,3264.9,3263.8,3.06385]
[1737643028318,0.116978,3264.9,3263.9,3.06374]
[1737643028519,0.116978,3264.9,3263.7,3.06398]
[1737643028835,3.06338,3264.4,3262.8,3.06482]
[1737643029006,0.75,3264.1,3262.3,3.06532]
[1737643029197,0.75,3264.1,3263.5,3.06416]
[1737643029415,0.75,3264.1,3263.6,3.06407]
[1737643029616,0.75,3264.1,3263.7,3.06396]
[1737643029852,0.75,3264.1,3263.5,3.06416]
[1737643030049,0.75,3264.1,3263.0,3.88042]
[1737643030050,0.75,3264.1,3263.2,3.0644]
[1737643030249,0.75,3264.1,3262.8,3.06478]
[1737643030403,0.75,3264.1,3263.1,3.06453]
[1737643031031,0.75,3264.1,3262.8,3.371238]
[1737643031225,0.75,3264.1,3262.8,0.306478]
[1737643031435,0.75,3264.1,3262.6,3.0]
[1737643031637,0.75,3264.1,3263.6,3.06407]
[1737643031809,0.75,3264.1,3262.8,7.07448681]
[1737643031810,0.75,3264.1,3263.3,3.0643]
[1737643032020,0.75,3264.1,3262.7,3.0]
[1737643032340,0.8046,3264.8,3263.0,3.0]
[1737643032664,0.116978,3264.9,3264.8,3.06297]
[1737643033118,0.116978,3264.9,3264.3,3.06337]
[1737643033445,0.116978,3264.9,3264.2,0.8101]
[1737643033446,0.116978,3264.9,3264.2,3.06351]
[1737643033751,0.116978,3264.9,3264.0,3.06364]
[1737643034272,0.7796,3264.8,3264.4,3.06333]
[1737643034408,0.7796,3264.8,3263.6,3.0641]
[1737643034409,0.116978,3264.9,3264.8,3.06297]
[1737643036977,0.116978,3264.9,3264.6,3.06308]
[1737643037384,0.116978,3264.9,3264.0,3.0637]
[1737643037591,0.116978,3264.9,3264.1,3.0636]
[1737643037756,0.116978,3264.9,3263.9,3.06381]
[1737643037956,0.116978,3264.9,3264.0,3.06368]
[1737643038194,0.066978,3264.9,3264.4,3.06326]
[1737643038357,0.066978,3264.9,3263.8,3.06387]
[1737643038566,0.066978,3264.9,3263.8,3.0639]
[1737643038886,0.066978,3264.9,3263.7,3.06394]
[1737643039192,0.066978,3264.9,3264.4,3.06328]
[1737643039393,0.066978,3264.9,3264.5,3.06322]
[1737643039600,0.066978,3264.9,3264.2,3.06345]
[1737643039893,0.066978,3264.9,3263.7,3.06395]
[1737643040045,0.066978,3264.9,3263.5,3.06415]
[1737643040239,0.066978,3264.9,3263.2,3.06446]
[1737643040439,0.771,3264.8,3263.5,3.06416]
[1737643040690,0.771,3264.8,3263.3,3.06437]
[1737643040900,0.771,3264.8,3262.4,3.453282]
[1737643040901,0.771,3264.5,3262.8,3.06483]
[1737643041050,0.771,3264.4,3262.8,3.06484]
[1737643041248,0.771,3264.8,3264.5,3.06325]
[1737643041458,0.066978,3264.9,3264.2,4.00968681]
[1737643041657,0.066978,3264.9,3264.8,3.06297]
[1737643045042,0.066978,3264.9,3264.2,0.61613014]
[1737643045187,0.066978,3264.9,3264.6,3.06314]
[1737643045388,0.066978,3264.9,3264.8,3.06297]
[1737643045743,0.066978,3264.9,3264.6,3.06312]
[1737643046425,0.066978,3264.9,3264.8,3.06297]
[1737643047211,0.066978,3264.9,3264.8,3.675579]
[1737643048124,0.7927,3266.6,3264.8,4.486279]
[1737643048323,0.7927,3266.6,3265.7,3.06212]
[1737643048645,0.7927,3266.6,3265.8,3.06201]
[1737643049539,0.005,3267.6,3266.1,3.06175]
[1737643049738,0.7927,3266.9,3266.1,3.367925]
[1737643050123,0.005,3267.6,3266.1,3.367925]
[1737643050124,0.8007,3267.4,3266.1,3.367925]
[1737643050443,0.005,3267.6,3265.6,0.7979]
[1737643050610,0.8007,3267.5,3266.3,3.06148]
[1737643050815,0.8007,3267.5,3266.2,3.06165]
[1737643051009,0.8007,3267.5,3265.7,0.6033295]
[1737643051231,0.8007,3267.5,3266.8,3.06108]
[1737643051433,0.8007,3267.5,3266.6,3.06126]
[1737643051597,0.8007,3267.5,3266.7,3.06114]
[1737643051801,0.8007,3267.5,3266.6,1.080526]
[1737643051997,0.005,3267.6,3267.1,3.06072]
[1737643052231,0.005,3267.6,3267.1,3.06077]
[1737643052699,0.005,3267.6,3266.9,3.061]
[1737643052897,0.005,3267.6,3266.6,0.7744]
[1737643053314,0.005,3267.6,3266.4,3.06144]
[1737643053528,0.005,3267.6,3266.5,0.306144]
[1737643053724,0.005,3267.6,3266.4,3.06147]
[1737643054034,0.005,3267.6,3266.5,3.06136]
[1737643054239,0.005,3267.6,3266.3,3.06151]
[1737643054399,0.005,3267.6,3266.2,3.06166]
[1737643054598,0.005,3267.6,3266.4,3.06144]
[1737643054898,0.005,3267.6,3266.5,0.306144]
[1737643055426,0.005,3267.6,3266.2,3.06166]
[1737643055740,0.005,3267.6,3266.3,3.06155]
[1737643055922,0.8111,3267.5,3266.3,3.06155]
[1737643056327,0.8111,3267.5,3266.1,5.44229039]
[1737643056535,0.8111,3267.5,3266.3,3.06149]
[1737643056848,0.8111,3267.5,3266.4,0.306149]
[1737643057040,0.8111,3267.5,3266.8,3.06103]
[1737643057237,0.8111,3267.5,3266.6,4.00968681]
[1737643057238,0.8111,3267.5,3266.6,7.07088681]
[1737643057721,0.8111,3267.5,3266.8,3.06109]
[1737643057925,0.8111,3267.5,3266.6,4.00968681]
[1737643058100,0.8111,3267.5,3266.7,3.06119]
[1737643058301,0.8111,3267.5,3266.8,0.306119]
[1737643058506,0.005,3267.6,3267.3,3.06055]
[1737643058715,0.005,3267.6,3267.3,3.06058]
[1737643059038,0.005,3267.6,3267.1,4.00968681]
[1737643060042,0.005,3267.6,3266.8,0.306119]
[1737643060242,0.005,3267.6,3266.9,0.3367299]
[1737643060415,0.005,3267.6,3266.8,0.306119]
[1737643060416,0.005,3267.6,3267.0,3.06082]
[1737643060614,0.005,3267.6,3266.4,3.06141]
[1737643060615,0.7954,3267.0,3264.8,0.612609]
[1737643060803,0.7954,3267.0,3265.6,4.00968681]
[1737643061005,0.7954,3267.5,3266.2,0.61658577]
[1737643061410,0.7954,3267.5,3266.3,3.06156]
[1737643061601,0.7954,3267.5,3266.4,3.42919458]
[1737643061809,0.7954,3267.5,3266.7,3.0611]
[1737643062212,0.7954,3267.5,3266.4,0.36781458]
[1737643062213,0.7954,3267.5,3266.6,4.00968681]
[1737643062446,0.005,3267.6,3267.5,3.06044]
[1737643063023,0.005,3267.6,3267.3,3.06057]
[1737643063236,0.005,3267.6,3267.5,3.06044]
[1737643063442,0.962378,3268.1,3267.5,3.366484]
[1737643063443,0.166978,3268.1,3267.5,3.366484]
[1737643063642,0.8219,3270.5,3268.0,3.05997]
[1737643063854,0.8219,3270.5,3268.7,3.05923]
[1737643064167,0.8219,3270.4,3268.1,0.61869177]
[1737643064541,0.8219,3270.4,3269.0,3.059]
[1737643064746,0.69572298,3270.8,3268.5,3.05947]
[1737643064747,0.09582769,3270.8,3269.1,1.0599]
[1737643065041,0.09582769,3270.8,3269.9,3.05818]
[1737643065240,0.09582769,3270.8,3270.1,3.058]
[1737643065475,0.09582769,3270.8,3269.9,3.05818]
[1737643065676,0.09582769,3270.8,3269.3,3.0587]
[1737643066029,0.09582769,3270.8,3269.3,3.05875]
[1737643066231,0.09582769,3270.8,3269.4,3.05865]
[1737643066541,0.09582769,3270.8,3269.9,3.05812]
[1737643066777,0.09582769,3270.8,3269.7,3.05837]
[1737643066961,0.09582769,3270.8,3268.8,0.60981395]
[1737643066962,0.09582769,3270.8,3269.8,0.754]
[1737643067335,0.09582769,3270.8,3270.4,3.0577]
[1737643067861,0.09582769,3270.8,3269.7,0.60069123]
[1737643067862,0.8154,3270.7,3269.7,0.60069123]
[1737643068066,0.8154,3270.7,3269.4,3.0586]
[1737643068372,0.8154,3270.7,3269.0,3.05903]
[1737643068682,0.8154,3270.7,3269.4,3.05857]
[1737643068844,0.8154,3270.7,3268.5,4.00968681]
[1737643069174,0.09582769,3270.8,3270.1,0.8252]
[1737643069379,0.09582769,3270.8,3270.1,3.88312]
[1737643069531,0.09582769,3270.8,3270.1,0.8252]
[1737643069731,0.7507,3270.7,3268.9,3.05913]
[1737643070048,0.7507,3270.7,3268.8,0.8254]
[1737643070229,0.7507,3270.7,3269.0,3.05903]
[1737643070570,3.7507,3270.7,3268.8,3.88462]
[1737643070770,0.55,3270.4,3268.2,0.8031]
[1737643070941,7.00968681,3270.7,3268.2,0.8031]
[1737643070942,3.821,3270.1,3268.2,0.8031]
[1737643071145,3.821,3270.1,3267.5,3.366414]
[1737643071146,0.09582769,3270.8,3269.5,0.8031]
[1737643071342,0.09582769,3270.8,3270.6,3.05745]
[1737643071586,0.09582769,3270.8,3270.7,4.57135368]
[1737643071962,0.0406536,3270.8,3270.7,4.57135368]
[1737643072278,0.00446664,3271.0,3270.9,3.05726]
[1737643073630,0.21855964,3272.6,3271.3,3.05688]
[1737643074031,0.21855964,3272.6,3271.1,3.05701]
[1737643074032,0.8306,3272.0,3271.1,3.05699]
[1737643074433,0.8306,3272.0,3271.2,3.05696]
[1737643074776,0.8306,3272.0,3270.6,1.41109379]
[1737643075133,0.8306,3272.0,3270.6,4.46854379]
[1737643075482,0.8306,3272.0,3270.6,1.41109379]
[1737643075646,0.8306,3272.0,3270.9,3.05724]
[1737643075850,0.8306,3272.0,3271.0,0.305724]
[1737643076177,0.8306,3272.0,3270.8,3.05731]
[1737643076390,0.8306,3272.0,3270.6,4.46855379]
[1737643076591,0.8306,3272.0,3270.7,3.0574]
[1737643076763,0.8306,3272.0,3270.6,1.41109379]
[1737643076764,0.8306,3272.0,3270.6,0.61629379]
[1737643076936,3.0,3271.9,3270.6,0.61629379]
[1737643077137,3.0,3271.9,3269.6,0.7538]
[1737643077342,3.05625,3272.0,3270.1,0.62051498]
[1737643077343,3.05687,3271.4,3270.1,0.62051498]
[1737643077545,3.05631,3272.0,3270.1,0.62051498]
[1737643077754,3.05664,3271.6,3270.1,0.62051498]
[1737643077941,0.55,3272.1,3270.1,0.62051498]
[1737643077942,3.0,3272.1,3270.1,0.62051498]
[1737643078146,3.05659,3271.7,3269.8,3.05826]
[1737643078371,3.0567,3271.5,3269.9,0.305826]
[1737643078681,4.00968681,3271.7,3269.6,0.7538]
[1737643078981,6.05701,3271.2,3269.4,3.67499614]
[1737643079280,6.66715318,3271.6,3269.5,3.05852]
[1737643079579,3.0,3271.4,3269.5,3.05852]
[1737643079786,3.05683,3271.4,3269.6,3.05839]
[1737643079942,0.77967024,3271.3,3269.7,0.305839]
[1737643080137,6.05698,3271.2,3269.3,3.05866]
[1737643080374,6.05707,3271.1,3269.3,3.05866]
[1737643080583,3.05751,3270.7,3269.1,0.7735]
[1737643080878,3.05811,3270.0,3268.6,0.7941]
[1737643081082,3.55,3270.6,3267.7,3.06022]
[1737643081083,3.05848,3269.6,3267.7,3.06022]
[1737643081237,3.05866,3269.5,3267.8,0.612052]
[1737643081436,3.0,3269.6,3267.5,1.100144]
[1737643081639,0.61735794,3270.3,3267.8,0.60579739]
[1737643081640,4.00968681,3270.2,3267.8,0.60579739]
[1737643081848,4.00968681,3270.7,3268.5,3.05942]
[1737643082079,0.25,3271.2,3268.0,0.7888]
[1737643082250,4.00968681,3271.2,3269.2,3.05884]
[1737643082452,7.06673681,3271.2,3269.1,0.7888]
[1737643082782,3.05671,3271.5,3269.6,3.0584]
[1737643082966,0.7669,3271.0,3269.1,0.7888]
[1737643083288,0.7669,3269.8,3268.6,0.804]
[1737643083439,0.7669,3269.8,3268.2,3.0597]
[1737643083638,0.7669,3269.8,3268.3,0.30597]
[1737643083840,0.7669,3269.8,3268.4,0.7743]
[1737643084141,0.7797,3270.7,3269.0,3.05903]
[1737643084351,0.7797,3270.7,3268.7,4.63542462]
[1737643084551,0.7797,3270.7,3269.4,3.05865]
[1737643084750,0.7797,3270.7,3269.6,3.05846]
[1737643084951,0.7797,3270.7,3269.5,3.364395]
[1737643085162,0.7797,3270.7,3269.5,0.305865]
[1737643085486,0.7797,3270.7,3269.3,0.7743]
[1737643085637,0.7797,3270.7,3269.4,3.05865]
[1737643085838,0.7797,3270.7,3269.3,0.7743]
[1737643086039,3.83715,3270.7,3268.8,3.84343]
[1737643086294,0.7797,3270.7,3268.8,0.7843]
[1737643086439,0.7797,3270.7,3269.1,3.05886]
[1737643086845,0.7797,3270.7,3269.1,0.611799]
[1737643087172,0.7797,3270.7,3269.1,3.0]
[1737643087345,0.7797,3270.7,3268.8,4.79398681]
[1737643087541,0.7797,3270.7,3269.4,3.05865]
[1737643087757,0.7797,3270.7,3269.4,3.05866]
[1737643087976,0.7797,3270.7,3269.4,3.05864]
[1737643088195,0.7797,3270.7,3269.3,0.60313895]
[1737643088487,3.83716,3270.7,3269.1,3.0589]
[1737643088670,3.0577,3270.5,3268.8,0.7843]
[1737643088845,3.0579,3270.3,3268.6,3.0594]
[1737643089041,0.8324,3269.9,3268.4,3.85307]
[1737643089250,0.8324,3269.9,3268.4,0.7935]
[1737643089445,0.8324,3269.9,3268.2,3.68367896]
[1737643089676,0.8324,3269.9,3268.2,0.62393896]
[1737643089877,0.7977,3269.2,3267.0,0.8061]
[1737643090088,0.7977,3268.8,3267.2,3.06065]
[1737643090292,0.7977,3268.8,3267.7,0.6173319]
[1737643090866,0.7977,3268.8,3267.3,3.366675]
[1737643091057,0.7977,3268.8,3267.3,0.306065]
[1737643091399,0.7977,3268.8,3267.8,0.7818]
[1737643091550,0.7977,3268.8,3268.3,3.05968]
[1737643091760,0.7977,3268.8,3268.3,3.365648]
[1737643091964,0.8197,3269.4,3268.7,3.05922]
[1737643092164,0.8197,3269.4,3268.7,3.05929]
[1737643092414,0.8251,3269.8,3269.2,3.0588]
[1737643092703,0.8251,3270.3,3269.4,3.0586]
[1737643092882,0.8251,3270.3,3268.9,3.0]
[1737643092883,0.8251,3270.3,3269.5,0.30586]
[1737643093049,0.8251,3270.3,3269.0,3.05898]
[1737643093268,0.8251,3270.3,3268.7,3.82954]
[1737643093472,0.8251,3270.3,3268.8,3.05915]
[1737643093819,0.8251,3270.3,3269.1,3.05892]
[1737643094186,0.8251,3270.3,3269.5,3.0585]
[1737643094547,0.8251,3270.3,3269.1,1.223353]
[1737643094721,0.8251,3270.3,3268.3,5.08125481]
[1737643094722,0.8079,3270.2,3268.4,3.05957]
[1737643094901,3.05809,3270.1,3268.3,0.305968]
[1737643095226,0.7552,3269.8,3268.3,0.91169305]
[1737643095425,0.7552,3269.8,3268.3,0.305968]
[1737643095719,0.55,3269.9,3268.3,1.223762]
[1737643096017,3.05876,3269.3,3267.5,3.67861539]
[1737643096177,3.05876,3269.3,3267.7,4.28419]
[1737643096382,3.05857,3269.5,3267.7,4.28419]
[1737643096613,3.0585,3269.6,3268.0,3.05996]
[1737643096808,3.05828,3269.9,3267.7,1.22396]
[1737643096809,3.05879,3269.3,3267.7,1.22396]
[1737643097014,3.05828,3269.9,3267.8,4.00968681]
[1737643097325,3.05831,3269.8,3268.2,3.05977]
[1737643097477,3.05862,3269.5,3267.8,3.06016]
[1737643097673,3.05862,3269.5,3267.3,0.306065]
[1737643097674,4.00968681,3269.5,3267.3,0.306065]
[1737643097872,3.05819,3269.9,3267.4,3.0]
[1737643098069,0.25,3270.6,3267.4,3.0]
[1737643098070,4.00968681,3272.0,3269.0,3.0]
[1737643098298,3.05642,3271.8,3269.6,3.05845]
[1737643098519,0.61012987,3271.4,3268.6,3.05941]
[1737643098682,3.05722,3271.0,3269.4,3.05858]
[1737643098888,0.8022,3270.9,3269.4,3.364438]
[1737643099093,0.8022,3270.9,3269.6,3.05845]
[1737643099292,0.8022,3270.9,3269.7,3.05835]
[1737643099613,0.8022,3270.9,3269.4,0.305858]
[1737643099773,3.05737,3270.8,3269.3,3.05874]
[1737643099979,3.05765,3270.5,3268.9,7.06881681]
[1737643100176,0.7695,3270.0,3268.5,3.05949]
[1737643100408,0.7695,3270.0,3268.6,3.05932]
[1737643100594,3.05823,3269.9,3268.5,0.60756039]
[1737643100890,0.8291,3269.8,3268.6,3.05938]
[1737643101127,0.8291,3269.8,3268.7,3.05925]
[1737643101421,0.8291,3269.8,3268.5,3.0595]
[1737643101622,0.8291,3269.8,3268.3,3.05967]
[1737643101827,0.8291,3269.8,3268.4,3.05957]
[1737643102117,0.8291,3269.8,3268.7,3.05924]
[1737643102319,0.8291,3269.8,3268.8,3.05922]
[1737643102528,0.8291,3269.8,3268.4,4.00968681]
[1737643102691,3.88739,3269.8,3268.2,3.05972]
[1737643102897,0.8291,3269.8,3268.0,3.05996]
[1737643103093,3.88745,3269.8,3268.2,3.05971]
[1737643103323,3.05779,3270.4,3267.9,4.00968681]
[1737643103324,3.05873,3269.4,3267.9,4.00968681]
[1737643103481,0.8291,3269.2,3267.6,3.06032]
[1737643103683,0.8291,3269.2,3267.8,3.06008]
[1737643104116,0.8291,3269.2,3267.5,1.22406]
[1737643104430,0.6180167,3269.6,3266.8,3.06107]
[1737643104431,0.8291,3268.3,3266.8,3.06107]
[1737643104674,0.8291,3268.2,3266.6,0.60700254]
[1737643104983,0.8291,3268.1,3266.9,4.00968681]
[1737643105182,0.8291,3268.1,3266.8,3.06105]
[1737643105383,3.88904,3268.1,3266.4,4.00968681]
[1737643105534,0.7563,3268.0,3266.6,3.06125]
[1737643105873,0.7563,3268.0,3266.5,1.224418]
[1737643106081,0.7563,3268.0,3266.7,3.06118]
[1737643106384,0.7563,3267.8,3266.4,4.48727549]
[1737643106679,3.06027,3267.7,3266.2,1.224509]
[1737643106858,0.776,3267.3,3265.9,3.14054802]
[1737643107029,0.776,3267.3,3266.0,3.06184]
[1737643107233,0.776,3267.3,3266.1,3.06168]
[1737643107659,0.776,3267.3,3266.2,3.06158]
[1737643108075,0.776,3267.3,3265.9,10.21212483]
[1737643108274,3.06073,3267.2,3265.9,8.29391471]
[1737643108487,0.776,3267.2,3265.6,4.286924]
[1737643108659,0.776,3267.0,3265.9,4.00968681]
[1737643109078,0.776,3267.0,3265.5,3.6671509]
[1737643109393,0.776,3267.0,3266.5,3.0613]
[1737643109572,0.776,3267.0,3266.1,3.06175]
[1737643109758,0.776,3267.0,3266.2,3.06164]
[1737643109958,0.776,3267.0,3266.1,0.70714368]
[1737643110276,0.776,3267.0,3266.4,3.06145]
[1737643110468,0.827,3268.4,3266.8,3.06109]
[1737643110792,0.827,3268.4,3267.0,4.00968681]
[1737643110997,0.827,3268.4,3267.7,3.06023]
[1737643111222,0.827,3268.4,3267.1,1.00658954]
[1737643111223,0.827,3268.4,3267.3,3.06057]
[1737643111357,0.827,3268.4,3267.2,3.06071]
[1737643111706,0.827,3268.4,3268.0,3.05995]
[1737643111868,4.25968681,3270.4,3268.0,4.00968681]
[1737643111869,0.8318,3270.4,3268.0,4.00968681]
[1737643112197,0.8318,3269.8,3268.4,3.0596]
[1737643112420,0.8318,3269.8,3268.0,3.05996]
[1737643112556,0.7774,3269.3,3267.7,3.06022]
[1737643112751,0.7774,3269.0,3267.7,3.06024]
[1737643113000,0.7774,3269.0,3268.0,3.05992]
[1737643113180,0.7774,3269.0,3268.1,0.305992]
[1737643113380,0.7774,3269.0,3268.4,3.0596]
[1737643113582,0.7774,3269.0,3268.6,4.00968681]
[1737643113901,0.7774,3269.0,3268.8,3.0592]
[1737643114101,0.5,3271.7,3268.6,4.00968681]
[1737643114102,0.7774,3269.4,3268.9,3.05912]
[1737643114270,0.7774,3269.4,3268.9,3.365032]
[1737643114611,0.7774,3269.4,3268.9,0.305912]
[1737643114807,0.7817,3270.0,3269.8,3.05825]
[1737643114956,0.7817,3270.4,3269.8,10.12621681]
[1737643115151,0.7817,3271.7,3270.3,4.00968681]
[1737643115402,0.7817,3271.7,3270.9,3.05725]
[1737643115697,0.21855964,3272.6,3271.5,3.0567]
[1737643115933,0.21855964,3272.6,3271.8,7.06607681]
[1737643116083,0.21855964,3272.6,3271.9,3.05632]
[1737643116284,0.21855964,3272.6,3272.3,4.00968681]
[1737643116681,0.21855964,3272.6,3271.3,4.00968681]
[1737643117133,0.21855964,3272.6,3270.9,0.70669368]
[1737643117335,3.27429964,3272.6,3270.8,4.00968681]
[1737643117479,0.21855964,3272.6,3270.8,4.00968681]
[1737643118026,0.21855964,3272.6,3270.1,0.8057]
[1737643118027,0.21855964,3272.6,3271.3,4.00968681]
[1737643118183,3.05596,3272.3,3271.3,4.00968681]
[1737643118383,0.55,3272.5,3270.8,4.00968681]
[1737643118583,0.8201,3271.7,3270.8,4.00968681]
[1737643118828,0.8201,3271.7,3270.8,4.41065549]
[1737643118991,0.8201,3271.7,3271.0,3.05712]
[1737643119193,0.8201,3271.7,3271.1,3.05706]
[1737643119487,0.7513,3272.2,3271.3,4.00968681]
[1737643119727,0.7513,3272.2,3271.4,3.45772868]
[1737643120048,0.7513,3272.2,3271.5,3.05665]
[1737643120201,0.7513,3272.2,3271.4,0.40096868]
[1737643120546,0.7513,3272.2,3271.4,3.45773868]
[1737643121105,0.7513,3272.2,3271.4,0.40096868]
[1737643121549,0.7513,3272.2,3271.5,0.44106555]
[1737643121749,0.7513,3272.2,3271.4,0.40096868]
[1737643121750,0.7513,3272.2,3271.4,3.05671]
[1737643122044,0.7513,3272.2,3271.7,4.00968681]
[1737643122250,0.21855964,3272.6,3271.7,4.00968681]
[1737643122558,0.21855964,3272.6,3272.2,4.00968681]
[1737643123029,0.21855964,3272.6,3271.7,4.00968681]
[1737643123842,0.21855964,3272.6,3272.2,4.00968681]
[1737643124461,0.21855964,3272.6,3272.2,7.06569681]
[1737643124612,0.21855964,3272.6,3272.2,7.06571681]
[1737643124813,0.21855964,3272.6,3272.2,4.00968681]
[1737643125343,0.21855964,3272.6,3271.4,3.66178624]
[1737643125564,0.21855964,3272.6,3271.7,4.00968681]
[1737643126064,3.88263,3272.5,3271.7,4.00968681]
[1737643126217,0.8268,3272.5,3271.7,4.00968681]
[1737643126416,3.88257,3272.5,3271.7,4.00968681]
[1737643126639,3.88257,3272.5,3271.2,4.00968681]
[1737643126640,3.05589,3272.4,3271.2,4.00968681]
[1737643126844,3.05623,3272.1,3271.2,4.00968681]
[1737643127047,0.21855964,3272.6,3270.7,4.00968681]
[1737643127048,0.8253,3271.8,3270.7,4.00968681]
[1737643127212,3.05669,3271.6,3270.7,4.00968681]
[1737643127429,3.05676,3271.5,3270.5,0.60152076]
[1737643127775,0.7525,3271.7,3270.5,1.82444476]
[1737643128085,3.05582,3272.5,3269.7,0.823]
[1737643128086,0.7525,3271.0,3269.7,4.00968681]
[1737643128212,0.7525,3270.6,3269.9,0.60922146]
[1737643129118,0.7525,3270.6,3270.2,4.00968681]
[1737643129725,0.7525,3270.6,3269.4,3.05866]
[1737643129940,0.7525,3270.6,3269.7,4.00968681]
[1737643130162,3.81008,3270.6,3269.2,4.00968681]
[1737643130323,3.05779,3270.4,3269.2,4.00968681]
[1737643130669,3.05779,3270.4,3269.0,6.16628138]
[1737643130670,3.82137,3269.5,3269.0,3.10726138]
[1737643130829,3.82137,3269.5,3267.2,0.15292931]
[1737643130830,3.05936,3268.7,3267.9,1.223892]
[1737643131040,3.05883,3269.3,3267.2,4.00968681]
[1737643131041,3.05944,3268.6,3267.2,3.38009487]
[1737643131239,0.7628,3268.5,3267.2,0.31938487]
[1737643131554,0.7628,3268.5,3267.2,7.07033681]
[1737643132121,3.05996,3268.1,3266.7,4.00968681]
[1737643132366,0.7628,3268.5,3266.7,4.00968681]
[1737643132367,3.06017,3267.8,3266.7,4.00968681]
[1737643132524,3.06017,3267.8,3266.6,3.10726138]
[1737643132726,3.06056,3267.4,3266.6,3.10726138]
[1737643132932,0.7743,3267.9,3266.6,3.10726138]
[1737643133172,0.7743,3267.4,3266.8,4.00968681]
[1737643133744,0.7743,3267.4,3265.9,3.06187]
[1737643133745,0.7743,3267.4,3266.3,4.00968681]
[1737643133939,0.7743,3267.4,3265.8,4.00968681]
[1737643134271,0.8052,3266.6,3265.3,4.00968681]
[1737643134569,3.8665,3266.6,3265.3,4.00968681]
[1737643134737,3.86649,3266.6,3264.8,4.82898681]
[1737643134939,3.86656,3266.6,3264.9,0.48289868]
[1737643135142,3.06153,3266.4,3264.9,1.09757122]
[1737643135338,0.8052,3266.6,3265.0,3.06277]
[1737643135759,0.8052,3266.6,3265.2,3.0625]
[1737643135973,0.8052,3266.6,3265.0,3.06277]
[1737643136148,0.8052,3266.6,3265.3,3.06249]
[1737643136350,0.8052,3266.6,3265.3,3.06246]
[1737643136534,3.8665,3266.6,3265.0,3.06278]
[1737643136734,3.86649,3266.6,3265.1,3.06267]
[1737643136962,6.92785,3266.6,3265.1,3.06267]
[1737643137164,0.60463207,3267.0,3264.8,4.00968681]
[1737643137165,3.06147,3266.4,3264.8,4.00968681]
[1737643137374,0.76,3266.1,3264.7,3.06306]
[1737643137583,0.76,3266.0,3264.4,3.47999667]
[1737643137736,0.76,3266.0,3265.3,7.07212681]
[1737643138073,0.76,3266.0,3265.5,3.06229]
[1737643138283,0.76,3266.0,3264.8,4.00968681]
[1737643138284,0.60408107,3266.5,3264.8,4.00968681]
[1737643138501,0.7789,3266.6,3265.0,3.06278]
[1737643138683,0.7789,3266.6,3264.8,4.00968681]
[1737643138884,0.7789,3266.6,3265.4,3.06239]
[1737643139389,0.7789,3266.6,3264.9,0.40096868]
[1737643139766,0.7789,3266.6,3265.5,3.0623]
[1737643140082,0.7789,3266.6,3265.3,3.06249]
[1737643140288,0.7789,3266.6,3265.1,3.06269]
[1737643140489,3.06138,3266.5,3265.1,3.71533787]
[1737643140810,0.7587,3266.4,3264.8,4.00968681]
[1737643140956,0.7587,3266.3,3264.8,7.07263681]
[1737643141159,0.7587,3266.3,3264.9,3.06288]
[1737643141403,0.7587,3266.3,3265.6,3.0622]
[1737643141601,0.7587,3266.3,3265.5,3.0623]
[1737643141803,0.7587,3266.3,3265.5,3.76949868]
[1737643142097,0.7587,3266.3,3265.7,3.06208]
[1737643142299,0.7587,3266.3,3265.3,7.07217681]